[Event "Early-Titled-Tuesday-Blitz-January-16-2024"]
[Site "Chess.com"]
[Date "2024.01.16"]
[Round "5"]
[White "A-Fier"]
[Black "Caroexpert"]
[Result "0-1"]
[WhiteElo "2791"]
[BlackElo "2571"]
[TimeControl "180+1"]
[EndTime "8:59:42 PST"]
[Termination "Caroexpert won by resignation"]

1. e4 {[%clk 0:03:00.9]} 1... c6 {[%clk 0:02:55.4]} 2. Nc3 {[%clk 0:03:00]} 2...
d5 {[%clk 0:02:55.7]} 3. g4 {[%clk 0:02:59.9]} 3... Nf6 {[%clk 0:02:44.9]} 4. e5
{[%clk 0:02:50.2]} 4... Nxg4 {[%clk 0:02:44.9]} 5. d4 {[%clk 0:02:50.8]} 5... c5
{[%clk 0:02:35.7]} 6. f4 {[%clk 0:02:41.2]} 6... Bf5 {[%clk 0:02:18.8]} 7. Nf3
{[%clk 0:02:37.2]} 7... e6 {[%clk 0:02:14.2]} 8. h3 {[%clk 0:02:36]} 8... Nh6
{[%clk 0:02:12.5]} 9. Be3 {[%clk 0:02:33.9]} 9... Be4 {[%clk 0:02:07.7]} 10.
Nxe4 {[%clk 0:02:30.1]} 10... dxe4 {[%clk 0:02:07.9]} 11. Ng5 {[%clk 0:02:25.8]}
11... Nf5 {[%clk 0:02:08.4]} 12. Bg1 {[%clk 0:02:22.3]} 12... cxd4 {[%clk
0:02:04.7]} 13. Nxe4 {[%clk 0:02:21.9]} 13... Qh4+ {[%clk 0:01:58.5]} 14. Bf2
{[%clk 0:02:16.7]} 14... Qxf4 {[%clk 0:01:58.4]} 15. Qg4 {[%clk 0:02:09.5]}
15... Qxe5 {[%clk 0:01:52]} 16. O-O-O {[%clk 0:02:09.5]} 16... Nc6 {[%clk
0:01:46.2]} 17. Bg2 {[%clk 0:02:08.8]} 17... Rc8 {[%clk 0:01:44.3]} 18. Rhe1
{[%clk 0:02:05.7]} 18... Qa5 {[%clk 0:01:44.1]} 19. a3 {[%clk 0:01:37.4]} 19...
Bxa3 {[%clk 0:01:30.4]} 20. bxa3 {[%clk 0:01:36.9]} 20... Qxa3+ {[%clk
0:00:47.5]} 21. Kd2 {[%clk 0:01:35.8]} 21... Ne5 {[%clk 0:00:47.4]} 22. Qf4
{[%clk 0:01:28]} 22... Qb4+ {[%clk 0:00:38.6]} 23. Ke2 {[%clk 0:01:22.4]} 23...
Qb5+ {[%clk 0:00:37.2]} 24. Kd2 {[%clk 0:01:12.3]} 24... Nc4+ {[%clk 0:00:36.9]}
25. Ke2 {[%clk 0:01:12.9]} 25... Nce3+ {[%clk 0:00:27.4]} 26. Kf3 {[%clk
0:01:13.2]} 26... Nxd1 {[%clk 0:00:21.4]} 27. Rxd1 {[%clk 0:01:09.6]} 27... Rxc2
{[%clk 0:00:20.6]} 28. Bf1 {[%clk 0:01:04.2]} 28... Qb3+ {[%clk 0:00:19.8]} 29.
Rd3 {[%clk 0:01:02.7]} 29... Qc4 {[%clk 0:00:15.5]} 30. Ra3 {[%clk 0:00:23.9]}
30... Qxf1 {[%clk 0:00:10.2]} 31. Qb8+ {[%clk 0:00:23.9]} 31... Ke7 {[%clk
0:00:10]} 32. Qxb7+ {[%clk 0:00:24.5]} 32... Kd8 {[%clk 0:00:08.5]} 33. Qb8+
{[%clk 0:00:14.1]} 33... Rc8 {[%clk 0:00:07.9]} 34. Qxa7 {[%clk 0:00:14.9]}
34... Nh4+ {[%clk 0:00:05.7]} 35. Kg4 {[%clk 0:00:14.3]} 35... Qe2+ {[%clk
0:00:04.2]} 36. Kf4 {[%clk 0:00:11.3]} 36... Ng2+ {[%clk 0:00:02.6]} 37. Kg3
{[%clk 0:00:11.5]} 37... Qxe4 {[%clk 0:00:02.7]} 38. Bxd4 {[%clk 0:00:08.6]}
38... Qf4+ {[%clk 0:00:01.6]} 39. Kxg2 {[%clk 0:00:09]} 39... Qe4+ {[%clk
0:00:02.2]} 40. Kg3 {[%clk 0:00:09.1]} 40... Qg6+ {[%clk 0:00:02.1]} 41. Kf3
{[%clk 0:00:08.9]} 41... Qf5+ {[%clk 0:00:02]} 42. Kg3 {[%clk 0:00:09.5]} 42...
Qg6+ {[%clk 0:00:02.3]} 43. Kf3 {[%clk 0:00:10]} 43... Qh5+ {[%clk 0:00:02.7]}
44. Kg3 {[%clk 0:00:10.4]} 44... Qd5 {[%clk 0:00:02.5]} 45. Bb6+ {[%clk
0:00:09.1]} 45... Ke8 {[%clk 0:00:03.1]} 46. Rf3 {[%clk 0:00:08.7]} 46... f6
{[%clk 0:00:01.9]} 47. Qa6 {[%clk 0:00:03.6]} 47... Qd6+ {[%clk 0:00:02.2]} 48.
Kg4 {[%clk 0:00:03.3]} 48... Kf7 {[%clk 0:00:02.6]} 49. Qb7+ {[%clk 0:00:03.1]}
49... Kg6 {[%clk 0:00:02.8]} 50. Kh4 {[%clk 0:00:02.4]} 50... Rc4+ {[%clk
0:00:03.1]} 51. Rf4 {[%clk 0:00:01.6]} 51... Rxf4+ {[%clk 0:00:03]} 52. Kg3
{[%clk 0:00:01.9]} 52... Rb4+ {[%clk 0:00:03.9]} 53. Kg2 {[%clk 0:00:02.3]}
53... Qd2+ {[%clk 0:00:04.1]} 54. Kg3 {[%clk 0:00:02.7]} 54... Qd3+ {[%clk
0:00:04.1]} 55. Kg2 {[%clk 0:00:03]} 55... Rb2+ {[%clk 0:00:04.2]} 56. Bf2
{[%clk 0:00:03.8]} 56... Rxb7 {[%clk 0:00:03.8]} 0-1

[Event "Early-Titled-Tuesday-Blitz-January-16-2024"]
[Site "Chess.com"]
[Date "2024.01.16"]
[Round "5"]
[White "adotand"]
[Black "CFN_Good_Evening"]
[Result "1-0"]
[WhiteElo "2869"]
[BlackElo "1880"]
[TimeControl "180+1"]
[EndTime "8:59:46 PST"]
[Termination "adotand won on time"]

1. b3 {[%clk 0:03:00.9]} 1... Nf6 {[%clk 0:02:57.3]} 2. Bb2 {[%clk 0:03:01.4]}
2... g6 {[%clk 0:02:57.9]} 3. e3 {[%clk 0:03:02]} 3... Bg7 {[%clk 0:02:58.2]} 4.
Nf3 {[%clk 0:03:02.7]} 4... O-O {[%clk 0:02:58.7]} 5. Be2 {[%clk 0:03:03]} 5...
d6 {[%clk 0:02:59.3]} 6. d4 {[%clk 0:03:03.6]} 6... Nc6 {[%clk 0:02:57.6]} 7. c4
{[%clk 0:03:04.2]} 7... a6 {[%clk 0:02:57]} 8. Nbd2 {[%clk 0:03:04.6]} 8... Nd7
{[%clk 0:02:52.9]} 9. O-O {[%clk 0:03:04.3]} 9... e6 {[%clk 0:02:52.9]} 10. a3
{[%clk 0:03:03.5]} 10... e5 {[%clk 0:02:51.2]} 11. b4 {[%clk 0:03:03]} 11... f5
{[%clk 0:02:36]} 12. Qb3 {[%clk 0:03:02.4]} 12... Kh8 {[%clk 0:02:34.5]} 13. c5
{[%clk 0:02:55.8]} 13... e4 {[%clk 0:02:26.4]} 14. Ne1 {[%clk 0:02:55.3]} 14...
dxc5 {[%clk 0:02:22.6]} 15. dxc5 {[%clk 0:02:55.3]} 15... Nce5 {[%clk
0:02:20.8]} 16. Nc4 {[%clk 0:02:51.7]} 16... Qe7 {[%clk 0:02:16.1]} 17. Nc2
{[%clk 0:02:50.9]} 17... Nxc4 {[%clk 0:02:12.4]} 18. Bxc4 {[%clk 0:02:51.8]}
18... Ne5 {[%clk 0:02:12.8]} 19. Be2 {[%clk 0:02:49.9]} 19... Be6 {[%clk
0:02:12.2]} 20. Qa4 {[%clk 0:02:46.8]} 20... Bd7 {[%clk 0:02:00.5]} 21. Qa5
{[%clk 0:02:45.3]} 21... Be8 {[%clk 0:01:43.2]} 22. b5 {[%clk 0:02:37.8]} 22...
Bxb5 {[%clk 0:01:23.6]} 23. Bxb5 {[%clk 0:02:36.5]} 23... axb5 {[%clk
0:01:24.4]} 24. Qxb5 {[%clk 0:02:37.1]} 24... c6 {[%clk 0:01:22.4]} 25. Qb3
{[%clk 0:02:36.3]} 25... Ra5 {[%clk 0:01:19.7]} 26. Nd4 {[%clk 0:02:36.2]} 26...
Nd3 {[%clk 0:01:03.4]} 27. Bc3 {[%clk 0:02:30.3]} 27... Ra7 {[%clk 0:01:02]} 28.
Ne6 {[%clk 0:02:24.1]} 28... Bxc3 {[%clk 0:00:51.8]} 29. Qxc3+ {[%clk 0:02:25]}
29... Rf6 {[%clk 0:00:47]} 30. Nf4 {[%clk 0:02:16.5]} 30... Nxc5 {[%clk
0:00:37.7]} 31. Rfd1 {[%clk 0:02:13.3]} 31... Kg8 {[%clk 0:00:35.6]} 32. Rab1
{[%clk 0:02:10.6]} 32... Ne6 {[%clk 0:00:34.7]} 33. Qe5 {[%clk 0:02:10.2]} 33...
b5 {[%clk 0:00:28.7]} 34. Nxe6 {[%clk 0:01:58.6]} 34... Rxe6 {[%clk 0:00:25.8]}
35. Qb8+ {[%clk 0:01:59]} 35... Kg7 {[%clk 0:00:25.7]} 36. h3 {[%clk 0:01:53.7]}
36... Rd7 {[%clk 0:00:21]} 37. Rbc1 {[%clk 0:01:38.9]} 37... Red6 {[%clk
0:00:20.5]} 38. Re1 {[%clk 0:01:27.9]} 38... Rd3 {[%clk 0:00:18.4]} 39. Rxc6
{[%clk 0:01:27.2]} 39... Rxa3 {[%clk 0:00:18.2]} 40. Qxb5 {[%clk 0:01:27.1]}
40... Rad3 {[%clk 0:00:17.7]} 41. Qb2+ {[%clk 0:01:25.5]} 41... Kh6 {[%clk
0:00:16.6]} 42. Rcc1 {[%clk 0:01:18]} 42... Rd2 {[%clk 0:00:16.5]} 43. Qb8
{[%clk 0:01:17.6]} 43... Qh4 {[%clk 0:00:15.7]} 44. Rf1 {[%clk 0:01:17.1]} 44...
f4 {[%clk 0:00:13.7]} 45. exf4 {[%clk 0:01:14.4]} 45... Rf7 {[%clk 0:00:12.6]}
46. g3 {[%clk 0:01:02.2]} 46... Qxh3 {[%clk 0:00:11.3]} 47. Qe5 {[%clk
0:00:59.1]} 47... Qf5 {[%clk 0:00:10]} 48. Rc5 {[%clk 0:00:54.9]} 48... Qxe5
{[%clk 0:00:08.3]} 49. Rxe5 {[%clk 0:00:55.8]} 49... Rd4 {[%clk 0:00:06]} 50.
Re1 {[%clk 0:00:56]} 50... Rfd7 {[%clk 0:00:06.1]} 51. Kg2 {[%clk 0:00:56]}
51... Kg7 {[%clk 0:00:05.9]} 52. g4 {[%clk 0:00:50.7]} 52... Kf6 {[%clk
0:00:06.4]} 53. Re3 {[%clk 0:00:49.3]} 53... R7d5 {[%clk 0:00:05.9]} 54. Re8
{[%clk 0:00:47.2]} 54... Kf7 {[%clk 0:00:05.8]} 55. R8xe4 {[%clk 0:00:46.1]}
55... Rxe4 {[%clk 0:00:05.8]} 56. Rxe4 {[%clk 0:00:47]} 56... h5 {[%clk
0:00:05.8]} 57. f3 {[%clk 0:00:46.5]} 57... Kf6 {[%clk 0:00:05.1]} 58. g5+
{[%clk 0:00:43.7]} 58... Kf7 {[%clk 0:00:05.2]} 59. Kg3 {[%clk 0:00:44.2]} 59...
Ra5 {[%clk 0:00:04.9]} 60. Rc4 {[%clk 0:00:44.3]} 60... Rb5 {[%clk 0:00:03.9]}
61. Rc7+ {[%clk 0:00:44.6]} 61... Kg8 {[%clk 0:00:03.9]} 62. Re7 {[%clk
0:00:43.1]} 62... Kf8 {[%clk 0:00:04.1]} 63. Rd7 {[%clk 0:00:40.7]} 63... Kg8
{[%clk 0:00:04.5]} 64. Kf2 {[%clk 0:00:40.9]} 64... Rb3 {[%clk 0:00:04.1]} 65.
f5 {[%clk 0:00:38.5]} 65... gxf5 {[%clk 0:00:03.7]} 66. Kg3 {[%clk 0:00:39.2]}
66... Rb4 {[%clk 0:00:03.7]} 67. f4 {[%clk 0:00:38.9]} 67... h4+ {[%clk
0:00:02.8]} 68. Kxh4 {[%clk 0:00:39.5]} 68... Rxf4+ {[%clk 0:00:03.3]} 69. Kh5
{[%clk 0:00:40.4]} 69... Rg4 {[%clk 0:00:03.2]} 70. Kg6 {[%clk 0:00:40.7]} 70...
Kf8 {[%clk 0:00:03.1]} 71. Rf7+ {[%clk 0:00:40.8]} 71... Kg8 {[%clk 0:00:02.7]}
72. Ra7 {[%clk 0:00:41.2]} 72... Rd4 {[%clk 0:00:02.9]} 73. Ra8+ {[%clk
0:00:40.8]} 1-0

[Event "Early-Titled-Tuesday-Blitz-January-16-2024"]
[Site "Chess.com"]
[Date "2024.01.16"]
[Round "5"]
[White "WindWhistler11"]
[Black "hawes33"]
[Result "0-1"]
[WhiteElo "2448"]
[BlackElo "2294"]
[TimeControl "180+1"]
[EndTime "8:59:55 PST"]
[Termination "hawes33 won by resignation"]

1. a3 {[%clk 0:02:45.2]} 1... c5 {[%clk 0:03:00.9]} 2. b4 {[%clk 0:02:45]} 2...
cxb4 {[%clk 0:03:00.8]} 3. axb4 {[%clk 0:02:45.3]} 3... Nf6 {[%clk 0:03:00.8]}
4. Bb2 {[%clk 0:02:17.7]} 4... e6 {[%clk 0:03:00.2]} 5. b5 {[%clk 0:02:17.5]}
5... Be7 {[%clk 0:02:59]} 6. e3 {[%clk 0:02:16.9]} 6... O-O {[%clk 0:02:57.4]}
7. g4 {[%clk 0:02:17.4]} 7... d5 {[%clk 0:02:55.1]} 8. h4 {[%clk 0:02:15.8]}
8... b6 {[%clk 0:02:53.7]} 9. g5 {[%clk 0:02:15.6]} 9... Nfd7 {[%clk 0:02:53.3]}
10. Bd3 {[%clk 0:02:13.4]} 10... e5 {[%clk 0:02:51.1]} 11. f4 {[%clk 0:02:06.7]}
11... e4 {[%clk 0:02:50.8]} 12. Be2 {[%clk 0:02:05.6]} 12... Nc5 {[%clk
0:02:48.6]} 13. h5 {[%clk 0:01:57.7]} 13... f6 {[%clk 0:02:36.2]} 14. gxf6
{[%clk 0:01:40.5]} 14... Bxf6 {[%clk 0:02:37.1]} 15. Nc3 {[%clk 0:01:40.6]}
15... Be6 {[%clk 0:02:36]} 16. Nh3 {[%clk 0:01:36.2]} 16... Bxh3 {[%clk
0:02:30.8]} 17. Rxh3 {[%clk 0:01:36]} 17... d4 {[%clk 0:02:31.1]} 18. Na4 {[%clk
0:01:29]} 18... d3 {[%clk 0:02:27.5]} 19. cxd3 {[%clk 0:01:24]} 19... Nxd3+
{[%clk 0:02:20.9]} 20. Bxd3 {[%clk 0:01:17.7]} 20... Qxd3 {[%clk 0:02:13.7]} 21.
Ra3 {[%clk 0:01:15.9]} 21... Qxb5 {[%clk 0:02:11.6]} 22. Bxf6 {[%clk 0:01:09.1]}
22... Rxf6 {[%clk 0:02:12.5]} 23. Nc3 {[%clk 0:01:08.2]} 23... Qf5 {[%clk
0:02:03.2]} 24. Rg3 {[%clk 0:01:03.6]} 24... Nd7 {[%clk 0:02:00.3]} 25. Qb3+
{[%clk 0:00:56.4]} 25... Kh8 {[%clk 0:01:58.9]} 26. Qd5 {[%clk 0:00:52.8]} 26...
Qxd5 {[%clk 0:01:46.5]} 27. Nxd5 {[%clk 0:00:53.7]} 27... Rd6 {[%clk 0:01:42.9]}
28. Ne7 {[%clk 0:00:46.2]} 28... Nc5 {[%clk 0:01:27.7]} 29. Rxg7 {[%clk
0:00:45.6]} 29... Kxg7 {[%clk 0:01:01.4]} 30. Nf5+ {[%clk 0:00:45.4]} 30... Kf6
{[%clk 0:00:58.8]} 31. Nxd6 {[%clk 0:00:46.3]} 31... Ke6 {[%clk 0:00:56.6]} 32.
Nc4 {[%clk 0:00:45.8]} 32... b5 {[%clk 0:00:51]} 33. Na5 {[%clk 0:00:38.7]}
33... b4 {[%clk 0:00:50.4]} 34. Ra1 {[%clk 0:00:38.7]} 34... Nd3+ {[%clk
0:00:47.5]} 35. Kd1 {[%clk 0:00:36.4]} 35... Rg8 {[%clk 0:00:41]} 36. Kc2 {[%clk
0:00:34.4]} 36... Rc8+ {[%clk 0:00:32]} 37. Kb3 {[%clk 0:00:33.8]} 37... Rc5
{[%clk 0:00:32]} 38. Nc4 {[%clk 0:00:32.6]} 38... Rxh5 {[%clk 0:00:30.2]} 39.
Ra6+ {[%clk 0:00:31.5]} 39... Kf5 {[%clk 0:00:20.4]} 40. Rxa7 {[%clk 0:00:28.6]}
40... Kg4 {[%clk 0:00:16.2]} 41. Re7 {[%clk 0:00:21]} 41... Kf3 {[%clk
0:00:14.9]} 42. Nd6 {[%clk 0:00:16.5]} 42... Rd5 {[%clk 0:00:05.7]} 43. Nxe4
{[%clk 0:00:16]} 43... h5 {[%clk 0:00:05.1]} 44. Ng5+ {[%clk 0:00:16]} 44... Ke2
{[%clk 0:00:05.4]} 45. e4 {[%clk 0:00:16.2]} 45... Rd8 {[%clk 0:00:04.2]} 46. f5
{[%clk 0:00:16.2]} 46... Kxd2 {[%clk 0:00:04.4]} 47. Rh7 {[%clk 0:00:13.4]}
47... Ra8 {[%clk 0:00:04.4]} 48. f6 {[%clk 0:00:12.6]} 48... Ra3+ {[%clk
0:00:04.5]} 49. Kc4 {[%clk 0:00:13.2]} 49... Rc3+ {[%clk 0:00:04.6]} 50. Kb5
{[%clk 0:00:12.6]} 50... Rc5+ {[%clk 0:00:04.4]} 51. Ka6 {[%clk 0:00:11.7]}
51... Rxg5 {[%clk 0:00:04.9]} 52. f7 {[%clk 0:00:09.9]} 52... Rg6+ {[%clk
0:00:05]} 53. Ka5 {[%clk 0:00:08.6]} 53... Rf6 {[%clk 0:00:05.5]} 54. e5 {[%clk
0:00:09.2]} 54... Nxe5 {[%clk 0:00:04.7]} 55. Kxb4 {[%clk 0:00:09.7]} 55... Nxf7
{[%clk 0:00:02.7]} 56. Rxh5 {[%clk 0:00:10.2]} 56... Rf4+ {[%clk 0:00:03.1]} 57.
Kb3 {[%clk 0:00:10.6]} 57... Ke3 {[%clk 0:00:03.7]} 58. Rh2 {[%clk 0:00:11.5]}
58... Rf3 {[%clk 0:00:04]} 59. Rh1 {[%clk 0:00:11.9]} 59... Ne5 {[%clk
0:00:04.5]} 60. Kb4 {[%clk 0:00:12.8]} 60... Kf2 {[%clk 0:00:04.8]} 61. Kb5
{[%clk 0:00:13.4]} 61... Nd3 {[%clk 0:00:05.2]} 62. Rh8 {[%clk 0:00:14.3]} 62...
Nf4 {[%clk 0:00:05.6]} 63. Rh2+ {[%clk 0:00:14.5]} 63... Kg3 {[%clk 0:00:05.2]}
64. Rh8 {[%clk 0:00:15.4]} 64... Re3 {[%clk 0:00:05.7]} 65. Rd8 {[%clk
0:00:15.5]} 65... Kf3 {[%clk 0:00:06.6]} 66. Kc4 {[%clk 0:00:15.9]} 66... Re4+
{[%clk 0:00:07.5]} 67. Rd4 {[%clk 0:00:16.4]} 67... Re3 {[%clk 0:00:08.1]} 68.
Rd1 {[%clk 0:00:16.7]} 68... Ne2 {[%clk 0:00:08.6]} 69. Rf1+ {[%clk 0:00:16.7]}
69... Ke4 {[%clk 0:00:09.5]} 70. Rf8 {[%clk 0:00:17.4]} 70... Rc3+ {[%clk
0:00:09.8]} 71. Kb5 {[%clk 0:00:18.3]} 71... Rd3 {[%clk 0:00:09.9]} 72. Re8+
{[%clk 0:00:18.8]} 72... Kf3 {[%clk 0:00:10.2]} 73. Rd8 {[%clk 0:00:19.7]} 73...
Rxd8 {[%clk 0:00:09.4]} 0-1

[Event "Early-Titled-Tuesday-Blitz-January-16-2024"]
[Site "Chess.com"]
[Date "2024.01.16"]
[Round "5"]
[White "Witik"]
[Black "xakevicius91"]
[Result "1/2-1/2"]
[WhiteElo "2763"]
[BlackElo "2531"]
[TimeControl "180+1"]
[EndTime "8:59:56 PST"]
[Termination "Game drawn by agreement"]

1. d4 {[%clk 0:02:59.2]} 1... Nf6 {[%clk 0:02:59.8]} 2. c4 {[%clk 0:02:59]} 2...
e6 {[%clk 0:02:59.9]} 3. Nf3 {[%clk 0:02:56.1]} 3... b6 {[%clk 0:02:59.9]} 4. g3
{[%clk 0:02:53.3]} 4... Bb7 {[%clk 0:03:00.1]} 5. Bg2 {[%clk 0:02:53]} 5... Be7
{[%clk 0:03:00.8]} 6. O-O {[%clk 0:02:52.6]} 6... O-O {[%clk 0:03:01.1]} 7. Nc3
{[%clk 0:02:52.5]} 7... Ne4 {[%clk 0:03:01.3]} 8. Bd2 {[%clk 0:02:51.2]} 8...
Nxd2 {[%clk 0:02:50.6]} 9. Qxd2 {[%clk 0:02:49.8]} 9... d6 {[%clk 0:02:51.1]}
10. d5 {[%clk 0:02:49.4]} 10... e5 {[%clk 0:02:50.4]} 11. e4 {[%clk 0:02:47.4]}
11... Nd7 {[%clk 0:02:48.9]} 12. Rab1 {[%clk 0:02:38.7]} 12... a5 {[%clk
0:02:48.7]} 13. b3 {[%clk 0:02:34.6]} 13... g6 {[%clk 0:02:47.9]} 14. a3 {[%clk
0:02:26.3]} 14... Bc8 {[%clk 0:02:34.7]} 15. b4 {[%clk 0:02:24.6]} 15... axb4
{[%clk 0:02:35.6]} 16. axb4 {[%clk 0:02:25.2]} 16... Bf6 {[%clk 0:02:36.1]} 17.
Ra1 {[%clk 0:02:12.9]} 17... Bb7 {[%clk 0:02:36.1]} 18. Qb2 {[%clk 0:02:09.1]}
18... Bg7 {[%clk 0:02:34.5]} 19. Rxa8 {[%clk 0:02:06.5]} 19... Qxa8 {[%clk
0:02:35.4]} 20. Ra1 {[%clk 0:02:05.9]} 20... Qb8 {[%clk 0:02:32.4]} 21. Nb5
{[%clk 0:02:02.3]} 21... h6 {[%clk 0:02:29.7]} 22. Bh3 {[%clk 0:01:56.4]} 22...
Nf6 {[%clk 0:02:28.2]} 23. Nd2 {[%clk 0:01:47.3]} 23... Rd8 {[%clk 0:02:22]} 24.
Qc2 {[%clk 0:01:33.8]} 24... Ne8 {[%clk 0:02:17.5]} 25. c5 {[%clk 0:01:21.9]}
25... bxc5 {[%clk 0:02:16.9]} 26. bxc5 {[%clk 0:01:22.2]} 26... Bxd5 {[%clk
0:02:08.5]} 27. Rb1 {[%clk 0:01:18.6]} 27... Bc6 {[%clk 0:01:27]} 28. Nxd6
{[%clk 0:01:05.6]} 28... Qa7 {[%clk 0:01:14]} 29. Nc8 {[%clk 0:00:57.4]} 29...
Qa6 {[%clk 0:01:00.3]} 30. Ne7+ {[%clk 0:00:55.8]} 30... Kf8 {[%clk 0:00:56.6]}
31. Bf1 {[%clk 0:00:40.5]} 31... Qa4 {[%clk 0:00:50.1]} 32. Qxa4 {[%clk
0:00:33.7]} 32... Bxa4 {[%clk 0:00:51]} 33. Nd5 {[%clk 0:00:34.1]} 33... Bc2
{[%clk 0:00:36]} 34. Rb2 {[%clk 0:00:17.1]} 34... Bxe4 {[%clk 0:00:35.5]} 35.
Nxe4 {[%clk 0:00:14.8]} 35... Rxd5 {[%clk 0:00:35.2]} 36. Rb8 {[%clk 0:00:15.4]}
36... Ke7 {[%clk 0:00:32.6]} 37. Bb5 {[%clk 0:00:15.3]} 37... Nf6 {[%clk
0:00:31.7]} 38. Bc6 {[%clk 0:00:12]} 38... Rd4 {[%clk 0:00:25.6]} 39. Nxf6
{[%clk 0:00:11.1]} 39... Kxf6 {[%clk 0:00:26.5]} 40. Rc8 {[%clk 0:00:08.6]}
40... Rc4 {[%clk 0:00:23.7]} 41. Rxc7 {[%clk 0:00:08.4]} 41... Bf8 {[%clk
0:00:24.2]} 42. Be8 {[%clk 0:00:07.6]} 42... Bxc5 {[%clk 0:00:18.7]} 43. Rxf7+
{[%clk 0:00:07.7]} 43... Ke6 {[%clk 0:00:16.8]} 44. Rf3 {[%clk 0:00:07.9]} 44...
Rc1+ {[%clk 0:00:13.4]} 45. Kg2 {[%clk 0:00:08.2]} 45... g5 {[%clk 0:00:13.8]}
46. Bg6 {[%clk 0:00:08]} 46... Ke7 {[%clk 0:00:13.9]} 47. Rf7+ {[%clk
0:00:07.5]} 47... Ke6 {[%clk 0:00:14.3]} 48. Rf3 {[%clk 0:00:07.6]} 48... Bd4
{[%clk 0:00:13.2]} 49. Bf5+ {[%clk 0:00:07.9]} 49... Ke7 {[%clk 0:00:13.3]} 50.
h3 {[%clk 0:00:07.1]} 50... Re1 {[%clk 0:00:12.1]} 51. Bg6 {[%clk 0:00:07.2]}
51... Re2 {[%clk 0:00:10.1]} 52. Bd3 {[%clk 0:00:06.6]} 52... Re1 {[%clk
0:00:10.1]} 53. Bg6 {[%clk 0:00:07.2]} 53... e4 {[%clk 0:00:10.3]} 54. Rf7+
{[%clk 0:00:07.2]} 54... Ke6 {[%clk 0:00:10.5]} 55. Rf8 {[%clk 0:00:07.3]} 55...
e3 {[%clk 0:00:10.3]} 56. fxe3 {[%clk 0:00:06.4]} 56... Bxe3 {[%clk 0:00:10.8]}
57. Rf1 {[%clk 0:00:04.2]} 57... Rxf1 {[%clk 0:00:08.5]} 58. Kxf1 {[%clk
0:00:04.4]} 58... Kf6 {[%clk 0:00:09.4]} 59. Be4 {[%clk 0:00:04.5]} 59... Bd4
{[%clk 0:00:10]} 60. Ke2 {[%clk 0:00:04.5]} 60... Be5 {[%clk 0:00:10.9]} 61. Kf3
{[%clk 0:00:05]} 61... Bd6 {[%clk 0:00:11.5]} 62. Bc2 {[%clk 0:00:05.5]} 62...
Kg7 {[%clk 0:00:12]} 63. g4 {[%clk 0:00:05.6]} 63... Bc7 {[%clk 0:00:12.5]} 64.
Ke4 {[%clk 0:00:06.5]} 64... Bg3 {[%clk 0:00:12.6]} 65. Kf5 {[%clk 0:00:07.1]}
65... Bh4 {[%clk 0:00:13.5]} 66. Bb3 {[%clk 0:00:07.5]} 66... Be1 {[%clk
0:00:13.7]} 67. Ke6 {[%clk 0:00:08.1]} 67... Bh4 {[%clk 0:00:14.4]} 68. Bc2
{[%clk 0:00:08.7]} 68... Bg3 {[%clk 0:00:15]} 69. Ke7 {[%clk 0:00:09.2]} 69...
Bh4 {[%clk 0:00:15.9]} 70. Bf5 {[%clk 0:00:09.7]} 70... Bf2 {[%clk 0:00:15.7]}
71. Ke8 {[%clk 0:00:10.3]} 71... Kf6 {[%clk 0:00:15.4]} 72. Kf8 {[%clk
0:00:09.8]} 72... Ke5 {[%clk 0:00:15.8]} 73. Kg7 {[%clk 0:00:10.1]} 73... Kf4
{[%clk 0:00:16.4]} 74. Kxh6 {[%clk 0:00:10.5]} 74... Bh4 {[%clk 0:00:16.8]} 75.
Kh5 {[%clk 0:00:10.4]} 75... Kg3 {[%clk 0:00:17.2]} 76. Bd7 {[%clk 0:00:09.7]}
76... Kxh3 {[%clk 0:00:17.8]} 77. Bf5 {[%clk 0:00:10.4]} 77... Kg3 {[%clk
0:00:18.3]} 78. Bc8 {[%clk 0:00:08.9]} 78... Kf4 {[%clk 0:00:19.2]} 79. Bf5
{[%clk 0:00:08.6]} 79... Ke5 {[%clk 0:00:18.7]} 1/2-1/2